fUST/lending_fUST_20250723
["ID","MTS","AMOUNT","RATE_DAILY","PERIOD"]
[374374447,1753282248783,-437.31434938,0.00021705,2]
[374374449,1753282248793,-928.4,0.0002186,5]
[374374451,1753282248803,-569.02,0.00021917,2]
[374374453,1753282248813,-1003.87,0.00021917,2]
[374374455,1753282248823,-1246.16,0.00021917,2]
[374374457,1753282248832,-3147.97,0.00021917,2]
[374374459,1753282248842,-631.17,0.00021917,2]
[374374461,1753282248852,-250.0,0.00021966,2]
[374374464,1753282248863,-587.0,0.0002199,2]
[374374466,1753282248873,-9972.34621077,0.00022,2]
[374374468,1753282248882,-983.31,0.00022,7]
[374374470,1753282248892,-10542.59,0.00022,7]
[374374472,1753282248902,-48711.31,0.00022,2]
[374374474,1753282248912,-12622.36869388,0.00022,7]
[374374476,1753282248922,-153.0,0.00022,2]
[374374478,1753282248932,-3339.05262815,0.00022065,2]
[374374479,1753282248943,-195.19,0.0002209,2]
[374374482,1753282248954,-251.6373,0.00022091,2]
[374374484,1753282248966,-222.878751,0.00022102,3]
[374374486,1753282248976,-251.6373,0.00022102,3]
[374374488,1753282248987,-739.90818326,0.00022122,2]
[374374490,1753282248998,-215.0738,0.00022122,2]
[374374492,1753282249007,-928.4,0.00022184,5]
[374374494,1753282249018,-569.02,0.00022191,2]
[374374496,1753282249028,-1003.87,0.00022191,2]
[374374498,1753282249039,-1246.16,0.00022191,2]
[374374500,1753282249049,-3147.97,0.00022191,2]
[374374502,1753282249060,-631.17,0.00022191,2]
[374374504,1753282249070,-153.0,0.00022192,7]
[374374506,1753282249080,-660.0,0.00022192,2]
[374374508,1753282249090,-2351.0,0.00022205,2]
[374374510,1753282249102,-569.02,0.00022465,2]
[374374512,1753282249116,-1003.87,0.00022465,2]
[374374514,1753282249126,-1246.16,0.00022465,2]
[374374516,1753282249135,-3147.97,0.00022465,2]
[374374518,1753282249146,-631.17,0.00022465,2]
[374374520,1753282249156,-2178.66,0.00022465,2]
[374374522,1753282249166,-545.97,0.000225,2]
[374374524,1753282249176,-928.4,0.00022508,5]
[374374526,1753282249186,-545.97,0.000226,2]
[374374529,1753282249196,-545.97,0.000227,7]
[374374530,1753282249206,-569.02,0.00022739,2]
[374374533,1753282249216,-1003.87,0.00022739,2]
[374374535,1753282249226,-1246.16,0.00022739,2]
[374374537,1753282249236,-3147.97,0.00022739,2]
[374374539,1753282249246,-631.17,0.00022739,2]
[374374541,1753282249255,-760.0,0.0002274,2]
[374374542,1753282249267,-545.97,0.000228,7]
[374374544,1753282249277,-251.6373,0.00022826,3]
[374374547,1753282249287,-222.878751,0.00022826,3]
[374374549,1753282249297,-928.4,0.00022832,6]
[374374551,1753282249307,-251.6373,0.00022838,2]
[374374553,1753282249317,-222.878751,0.00022838,2]
[374374555,1753282249327,-545.97,0.000229,2]
[374374556,1753282249336,-545.97,0.00023,6]
[374374559,1753282249346,-160.0,0.00023,2]
[374374560,1753282249355,-243.98,0.00023011,2]
[374374562,1753282249365,-569.02,0.00023013,2]
[374374565,1753282249374,-1003.87,0.00023013,2]
[374374567,1753282249384,-1246.16,0.00023013,2]
[374374569,1753282249393,-3147.97,0.00023013,2]
[374374571,1753282249402,-631.17,0.00023013,2]
[374374573,1753282249414,-153.0,0.00023014,7]
[374374575,1753282249424,-251.6373,0.00023053,6]
[374374577,1753282249433,-545.97,0.000231,3]
[374374579,1753282249443,-928.4,0.00023155,6]
[374374581,1753282249452,-545.97,0.000232,6]
[374374583,1753282249461,-569.02,0.00023287,2]
[374374585,1753282249470,-1003.87,0.00023287,2]
[374374587,1753282249479,-1246.16,0.00023287,2]
[374374589,1753282249489,-3147.97,0.00023287,2]
[374374591,1753282249499,-631.17,0.00023287,2]
[374374593,1753282249508,-860.0,0.00023288,2]
[374374595,1753282249518,-545.97,0.000233,2]
[374374597,1753282249527,-429.674968,0.00023315,2]
[374374599,1753282249537,-429.674968,0.00023315,2]
[374374601,1753282249547,-429.674968,0.00023315,2]
[374374603,1753282249556,-500.0,0.00023325,2]
[374374605,1753282249566,-693.7632281,0.00023342,2]
[374374607,1753282249575,-500.0,0.00023373,2]
[374374609,1753282249584,-460.0,0.00023399,2]
[374374611,1753282249594,-460.0,0.00023399,2]
[374374613,1753282249603,-460.0,0.00023399,2]
[374374615,1753282249613,-460.0,0.00023399,2]
[374374617,1753282249622,-460.0,0.00023399,2]
[374374619,1753282249632,-460.0,0.00023399,2]
[374374621,1753282249641,-500.0,0.00023399,2]
[374374623,1753282249650,-460.0,0.00023399,2]
[374374625,1753282249661,-460.0,0.00023399,2]
[374374627,1753282249670,-352.47538573,0.00023399,2]
[374374629,1753282249680,-560.07,0.00023399,2]
[374374631,1753282249689,-460.0,0.00023399,2]
[374374633,1753282249698,-460.0,0.00023399,2]
[374374635,1753282249708,-460.0,0.00023399,2]
[374374637,1753282249719,-460.0,0.00023399,2]
[374374639,1753282249728,-460.0,0.00023399,2]
[374374641,1753282249737,-460.0,0.00023399,2]
[374374643,1753282249746,-460.0,0.00023399,2]
[374374645,1753282249756,-460.0,0.00023399,2]
[374374647,1753282249766,-460.0,0.00023399,2]
[374374649,1753282249775,-460.0,0.00023399,2]
[374374651,1753282249784,-460.0,0.00023399,2]
[374374653,1753282249795,-266.78977484,0.00023399,2]
[374374655,1753282249804,-460.0,0.00023399,2]
[374374657,1753282249814,-460.0,0.00023399,2]
[374374659,1753282249823,-460.0,0.00023399,2]
[374374661,1753282249833,-460.0,0.00023399,2]
[374374663,1753282249842,-460.0,0.00023399,2]
[374374665,1753282249852,-460.0,0.00023399,2]
[374374667,1753282249861,-460.0,0.00023399,2]
[374374669,1753282249871,-460.0,0.00023399,2]
[374374671,1753282249880,-379.26921026,0.00023399,2]
[374374673,1753282249889,-460.0,0.00023399,2]
[374374675,1753282249898,-4062.89,0.00023399,2]
[374374677,1753282249907,-460.0,0.00023399,2]
[374374679,1753282249919,-460.0,0.00023399,2]
[374374681,1753282249928,-460.0,0.00023399,2]
[374374682,1753282249937,-460.0,0.00023399,2]
[374374685,1753282249947,-460.0,0.00023399,2]
[374374687,1753282249957,-460.0,0.00023399,2]
[374374689,1753282249967,-460.0,0.00023399,2]
[374374691,1753282249978,-460.0,0.00023399,2]
[374374693,1753282249987,-460.0,0.00023399,2]
[374374695,1753282249997,-460.0,0.00023399,2]
[374374697,1753282250007,-335.25489743,0.00023399,2]
[374374699,1753282250016,-460.0,0.00023399,2]
[374374701,1753282250025,-460.0,0.00023399,2]
[374374703,1753282250035,-378.79322116,0.00023399,2]
[374374705,1753282250044,-460.0,0.00023399,2]
[374374707,1753282250054,-541.67,0.00023399,2]
[374374709,1753282250063,-460.0,0.00023399,2]
[374374711,1753282250072,-460.0,0.00023399,2]
[374374713,1753282250081,-460.0,0.00023399,2]
[374374715,1753282250092,-460.0,0.00023399,2]
[374374717,1753282250103,-429.59949589,0.00023399,2]
[374374719,1753282250113,-460.0,0.00023399,2]
[374374721,1753282250123,-460.0,0.00023399,2]
[374374723,1753282250132,-460.0,0.00023399,2]
[374374725,1753282250141,-460.0,0.00023399,2]
[374374727,1753282250151,-460.0,0.00023399,2]
[374374730,1753282250161,-460.0,0.00023399,2]
[374374731,1753282250171,-460.0,0.00023399,2]
[374374734,1753282250180,-447.79876407,0.00023399,2]
[374374736,1753282250189,-460.0,0.00023399,2]
[374374738,1753282250199,-460.0,0.00023399,2]
[374374740,1753282250209,-460.0,0.00023399,2]
[374374742,1753282250218,-460.0,0.00023399,2]
[374374744,1753282250227,-460.0,0.00023399,2]
[374374746,1753282250237,-460.87807703,0.00023399,2]
[374374748,1753282250247,-460.0,0.00023399,2]
[374374750,1753282250258,-460.0,0.00023399,2]
[374374752,1753282250267,-460.0,0.00023399,2]
[374374754,1753282250276,-460.0,0.00023399,2]
[374374756,1753282250286,-460.0,0.00023399,2]
[374374758,1753282250296,-460.0,0.00023399,2]
[374374760,1753282250305,-467.82,0.00023399,2]
[374374762,1753282250314,-460.0,0.00023399,2]
[374374764,1753282250324,-460.0,0.00023399,2]
[374374766,1753282250334,-460.0,0.00023399,2]
[374374768,1753282250343,-212.04787604,0.00023399,2]
[374374770,1753282250353,-460.0,0.00023399,2]
[374374772,1753282250362,-460.0,0.00023399,2]
[374374774,1753282250371,-460.0,0.00023399,2]
[374374776,1753282250380,-460.0,0.00023399,2]
[374374778,1753282250390,-462.64319519,0.00023399,2]
[374374780,1753282250399,-460.0,0.00023399,2]
[374374782,1753282250408,-460.0,0.00023399,2]
[374374784,1753282250419,-588.68,0.00023399,2]
[374374786,1753282250428,-460.0,0.00023399,2]
[374374788,1753282250437,-462.90702944,0.00023399,2]
[374374790,1753282250446,-460.0,0.00023399,2]
[374374792,1753282250455,-460.0,0.00023399,2]
[374374794,1753282250465,-460.0,0.00023399,2]
[374374796,1753282250474,-1232.45,0.00023399,2]
[374374798,1753282250484,-460.0,0.00023399,2]
[374374800,1753282250493,-460.0,0.00023399,2]
[374374802,1753282250502,-460.0,0.00023399,2]
[374374804,1753282250511,-460.0,0.00023399,2]
[374374806,1753282250521,-460.0,0.00023399,2]
[374374808,1753282250531,-460.0,0.00023399,2]
[374374810,1753282250540,-460.0,0.00023399,2]
[374374812,1753282250549,-1077.91,0.00023399,2]
[374374814,1753282250559,-460.0,0.00023399,2]
[374374816,1753282250568,-460.0,0.00023399,2]
[374374818,1753282250577,-460.0,0.00023399,2]
[374374820,1753282250587,-460.0,0.00023399,2]
[374374822,1753282250597,-460.0,0.00023399,2]
[374374824,1753282250607,-460.0,0.00023399,2]
[374374826,1753282250616,-460.0,0.00023399,2]
[374374828,1753282250627,-460.0,0.00023399,2]
[374374830,1753282250637,-500.0,0.00023399,2]
[374374832,1753282250647,-460.0,0.00023399,2]
[374374834,1753282250658,-460.0,0.00023399,2]
[374374836,1753282250669,-460.0,0.00023399,2]
[374374838,1753282250678,-460.0,0.00023399,2]
[374374840,1753282250688,-460.0,0.00023399,2]
[374374842,1753282250697,-460.0,0.00023399,2]
[374374844,1753282250707,-460.0,0.00023399,2]
[374374846,1753282250717,-460.0,0.00023399,2]
[374374847,1753282250727,-460.0,0.00023399,2]
[374374849,1753282250737,-460.0,0.00023399,2]
[374374851,1753282250746,-460.0,0.00023399,2]
[374374854,1753282250756,-460.0,0.00023399,2]
[374374855,1753282250770,-460.0,0.00023399,2]
[374374857,1753282250779,-460.0,0.00023399,2]
[374374859,1753282250788,-546.03854102,0.000234,5]
[374374861,1753282250799,-25578.24877451,0.000234,2]
[374374863,1753282250810,-2299.97,0.000234,2]
[374374865,1753282250819,-48711.31,0.000234,2]
[374374867,1753282250828,-519.22,0.0002341,3]
[374374869,1753282250837,-500.0,0.00023456,2]
[374374871,1753282250847,-928.4,0.00023479,6]
[374374873,1753282250856,-223.0315306,0.00023491,2]
[374374875,1753282250867,-1096.0,0.000235,5]
[374374878,1753282250876,-519.22,0.0002351,4]
[374374879,1753282250886,-251.6373,0.00023549,3]
[374374880,1753282250896,-222.878751,0.00023549,3]
[374374881,1753282250905,-692.0,0.00023561,2]
[374374882,1753282250920,-569.02,0.00023561,2]
[374374883,1753282250929,-1003.87,0.00023561,2]
[374374884,1753282250939,-1246.16,0.00023561,2]
[374374885,1753282250948,-261.12,0.00023561,2]
[374374886,1753282250957,-261.12,0.00023561,2]
[374374887,1753282250968,-261.12,0.00023561,2]
[374374888,1753282250977,-261.12,0.00023561,2]
[374374889,1753282250986,-261.12,0.00023561,2]
[374374890,1753282250995,-261.12,0.00023561,2]
[374374892,1753282251005,-261.12,0.00023561,2]
[374374894,1753282251015,-261.12,0.00023561,2]
[374374896,1753282251024,-261.12,0.00023561,2]
[374374898,1753282251033,-261.12,0.00023561,2]
[374374900,1753282251043,-261.12,0.00023561,2]
[374374902,1753282251052,-261.12,0.00023561,2]
[374374904,1753282251062,-261.12,0.00023561,2]
[374374906,1753282251072,-261.12,0.00023561,2]
[374374908,1753282251081,-261.12,0.00023561,2]
[374374910,1753282251090,-261.12,0.00023561,2]
[374374912,1753282251099,-261.12,0.00023561,2]
[374374914,1753282251108,-3147.97,0.00023561,2]
[374374916,1753282251118,-631.17,0.00023561,2]
[374374918,1753282251127,-251.6373,0.00023585,2]
[374374920,1753282251137,-222.878751,0.00023585,2]
[374374922,1753282251146,-153.0,0.00023589,2]
[374374924,1753282251155,-519.22,0.0002361,4]
[374374925,1753282251169,-567.0,0.00023627,2]
[374374927,1753282251178,-178.02,0.00023673,2]
[374374930,1753282251188,-460.0,0.00023673,2]
[374374931,1753282251197,-460.0,0.00023673,2]
[374374933,1753282251207,-460.0,0.00023673,2]
[374374935,1753282251217,-460.0,0.00023673,2]
[374374937,1753282251226,-460.0,0.00023673,2]
[374374939,1753282251235,-460.0,0.00023673,2]
[374374941,1753282251245,-460.0,0.00023673,2]
[374374943,1753282251254,-460.0,0.00023673,2]
[374374945,1753282251263,-460.0,0.00023673,2]
[374374947,1753282251272,-460.0,0.00023673,2]
[374374948,1753282251282,-460.0,0.00023673,2]
[374374950,1753282251293,-460.0,0.00023673,2]
[374374952,1753282251302,-4062.89,0.00023673,2]
[374374954,1753282251313,-460.0,0.00023673,2]
[374374956,1753282251322,-460.0,0.00023673,2]
[374374958,1753282251332,-460.0,0.00023673,2]
[374374960,1753282251341,-460.0,0.00023673,2]
[374374962,1753282251350,-460.0,0.00023673,2]
[374374964,1753282251359,-460.0,0.00023673,2]
[374374966,1753282251368,-460.0,0.00023673,2]
[374374968,1753282251378,-460.0,0.00023673,2]
[374374970,1753282251387,-460.0,0.00023673,2]
[374374972,1753282251396,-460.0,0.00023673,2]
[374374974,1753282251406,-460.0,0.00023673,2]
[374374976,1753282251416,-541.67,0.00023673,2]
[374374978,1753282251425,-460.0,0.00023673,2]
[374374980,1753282251435,-460.0,0.00023673,2]
[374374982,1753282251444,-460.0,0.00023673,2]
[374374984,1753282251454,-460.0,0.00023673,2]
[374374985,1753282251463,-460.0,0.00023673,2]
[374374987,1753282251473,-460.0,0.00023673,2]
[374374989,1753282251482,-460.0,0.00023673,2]
[374374991,1753282251491,-460.0,0.00023673,2]
[374374993,1753282251500,-460.0,0.00023673,2]
[374374995,1753282251510,-460.0,0.00023673,2]
[374374997,1753282251520,-460.0,0.00023673,2]
[374374999,1753282251530,-460.0,0.00023673,2]
[374375001,1753282251539,-467.82,0.00023673,2]
[374375003,1753282251548,-460.0,0.00023673,2]
[374375005,1753282251557,-460.0,0.00023673,2]
[374375007,1753282251566,-460.0,0.00023673,2]
[374375009,1753282251576,-460.0,0.00023673,2]
[374375010,1753282251585,-460.0,0.00023673,2]
[374375012,1753282251594,-588.68,0.00023673,2]
[374375014,1753282251604,-460.0,0.00023673,2]
[374375016,1753282251613,-460.0,0.00023673,2]
[374375018,1753282251622,-460.0,0.00023673,2]
[374375020,1753282251631,-460.0,0.00023673,2]
[374375022,1753282251640,-1232.45,0.00023673,2]
[374375024,1753282251649,-460.0,0.00023673,2]
[374375026,1753282251659,-547.63804889,0.00023673,2]
[374375028,1753282251670,-460.0,0.00023673,2]
[374375030,1753282251679,-460.0,0.00023673,2]
[374375032,1753282251688,-1077.91,0.00023673,2]
[374375034,1753282251698,-460.0,0.00023673,2]
[374375036,1753282251707,-460.0,0.00023673,2]
[374375038,1753282251718,-460.0,0.00023673,2]
[374375040,1753282251728,-460.0,0.00023673,2]
[374375042,1753282251738,-580.54802677,0.00023673,2]
[374375044,1753282251748,-460.0,0.00023673,2]
[374375046,1753282251759,-460.0,0.00023673,2]
[374375048,1753282251768,-460.0,0.00023673,2]
[374375050,1753282251778,-460.0,0.00023673,2]
[374375052,1753282251788,-497.13968117,0.00023673,2]
[374375054,1753282251801,-460.0,0.00023673,2]
[374375056,1753282251814,-460.0,0.00023673,2]
[374375058,1753282251824,-460.0,0.00023673,2]
[374375060,1753282251833,-460.0,0.00023673,2]
[374375062,1753282251842,-460.0,0.00023673,2]
[374375076,1753282251974,-10542.59,0.000237,7]
[374375078,1753282251985,-519.22,0.0002371,6]
[374375080,1753282251994,-251.6373,0.00023721,6]
[374375082,1753282252004,-648.0,0.00023737,2]
[374375084,1753282252013,-2157.0,0.00023737,2]
[374375086,1753282252022,-969.0,0.00023737,2]
[374375088,1753282252032,-167.4724735,0.00023781,2]
[374375090,1753282252041,-983.31,0.000238,7]
[374375092,1753282252051,-928.4,0.00023803,6]
[374375094,1753282252061,-167.47247349,0.00023808,2]
[374375096,1753282252070,-519.22,0.0002381,3]
[374375098,1753282252080,-692.0,0.00023835,2]
[374375100,1753282252089,-569.02,0.00023835,2]
[374375102,1753282252098,-1003.87,0.00023835,2]
[374375104,1753282252107,-1246.16,0.00023835,2]
[374375106,1753282252117,-261.12,0.00023835,2]
[374375108,1753282252126,-3147.97,0.00023835,2]
[374375110,1753282252135,-631.17,0.00023835,2]
[374375112,1753282252144,-997.18312655,0.00023836,2]
[374375114,1753282252154,-4046.37427529,0.00023839,7]
[374375116,1753282252166,-349.0,0.00023862,2]
[374375118,1753282252175,-1014.30487784,0.00023873,2]
[374375120,1753282252184,-349.0,0.0002389,2]
[374375122,1753282252195,-12500.0,0.000239,7]
[374375124,1753282252204,-264.67770418,0.000239,2]
[374375126,1753282252213,-519.22,0.0002391,7]
[374375128,1753282252222,-500.0,0.00023921,2]
[374375130,1753282252232,-292.78,0.00023931,2]
[374375132,1753282252241,-198.39848728,0.00023947,2]
[374375134,1753282252250,-519.92,0.00023947,2]
[374375136,1753282252259,-475.18775664,0.00023947,2]
[374375138,1753282252268,-460.0,0.00023947,2]
[374375140,1753282252277,-460.0,0.00023947,2]
[374375142,1753282252287,-396.62405628,0.00023947,2]
[374375144,1753282252295,-460.0,0.00023947,2]
[374375145,1753282252304,-460.0,0.00023947,2]
[374375148,1753282252315,-460.0,0.00023947,2]
[374375149,1753282252324,-4062.89,0.00023947,2]
[374375151,1753282252334,-460.0,0.00023947,2]
[374375154,1753282252343,-460.0,0.00023947,2]
[374375155,1753282252352,-460.0,0.00023947,2]
[374375157,1753282252362,-460.0,0.00023947,2]
[374375159,1753282252371,-460.0,0.00023947,2]
[374375161,1753282252381,-460.0,0.00023947,2]
[374375163,1753282252391,-460.0,0.00023947,2]
[374375166,1753282252400,-541.67,0.00023947,2]
[374375168,1753282252409,-460.0,0.00023947,2]
[374375169,1753282252423,-460.0,0.00023947,2]
[374375171,1753282252432,-460.0,0.00023947,2]
[374375173,1753282252441,-460.0,0.00023947,2]
[374375175,1753282252451,-460.0,0.00023947,2]
[374375177,1753282252460,-460.0,0.00023947,2]
[374375179,1753282252469,-467.82,0.00023947,2]
[374375181,1753282252479,-460.0,0.00023947,2]
[374375183,1753282252489,-460.0,0.00023947,2]
[374375185,1753282252498,-460.0,0.00023947,2]
[374375187,1753282252507,-153.48,0.00023947,2]
[374375189,1753282252517,-588.68,0.00023947,2]
[374375191,1753282252526,-476.06802245,0.00023947,2]
[374375193,1753282252536,-460.0,0.00023947,2]
[374375195,1753282252545,-1232.45,0.00023947,2]
[374375197,1753282252554,-460.0,0.00023947,2]
[374375199,1753282252564,-460.0,0.00023947,2]
[374375201,1753282252574,-460.0,0.00023947,2]
[374375203,1753282252583,-1077.91,0.00023947,2]
[374375205,1753282252591,-460.0,0.00023947,2]
[374375207,1753282252600,-460.0,0.00023947,2]
[374375209,1753282252609,-460.0,0.00023947,2]
[374375211,1753282252619,-460.0,0.00023947,2]
[374375213,1753282252628,-460.0,0.00023947,2]
[374375215,1753282252637,-460.0,0.00023947,2]
[374375217,1753282252646,-460.0,0.00023947,2]
[374375219,1753282252655,-823.0,0.00023981,2]
[374375221,1753282252668,-164.65631797,0.00024,14]
[374375223,1753282252677,-231.11583447,0.00024,7]
[374375225,1753282252687,-643.0,0.00024,2]
[374375227,1753282252696,-160.0,0.00024,7]
[374375229,1753282252706,-160.0,0.00024,7]
[374375231,1753282252715,-840.06856235,0.00024,7]
[374375233,1753282252727,-500.0,0.00024027,30]
[374375235,1753282252737,-692.0,0.00024109,2]
[374375237,1753282252746,-569.02,0.00024109,2]
[374375239,1753282252755,-1003.87,0.00024109,2]
[374375241,1753282252765,-1246.16,0.00024109,2]
[374375243,1753282252774,-261.12,0.00024109,2]
[374375245,1753282252783,-3147.97,0.00024109,2]
[374375247,1753282252794,-631.17,0.00024109,2]
[374375249,1753282252803,-167.4724735,0.0002411,2]
[374375251,1753282252812,-160.0,0.00024124,4]
[374375252,1753282252821,-1890.29824404,0.00024125,3]
[374375255,1753282252831,-928.4,0.00024127,7]
[374375257,1753282252840,-600.0,0.00024134,2]
[374375259,1753282252849,-167.47247349,0.00024137,2]
[374375261,1753282252859,-154.0,0.00024164,7]
[374375263,1753282252868,-349.0,0.00024212,2]
[374375264,1753282252877,-460.0,0.00024221,2]
[374375266,1753282252887,-460.0,0.00024221,2]
[374375268,1753282252896,-460.0,0.00024221,2]
[374375270,1753282252906,-306.98227773,0.00024221,2]
[374375273,1753282252918,-4062.89,0.00024221,2]
[374375274,1753282252927,-460.0,0.00024221,2]
[374375276,1753282252937,-460.0,0.00024221,2]
[374375278,1753282252947,-460.0,0.00024221,2]
[374375281,1753282252956,-460.0,0.00024221,2]
[374375282,1753282252966,-199.98117311,0.00024221,2]
[374375285,1753282252976,-541.67,0.00024221,2]
[374375286,1753282252985,-460.0,0.00024221,2]
[374375289,1753282252995,-460.0,0.00024221,2]
[374375291,1753282253004,-460.0,0.00024221,2]
[374375292,1753282253014,-460.0,0.00024221,2]
[374375294,1753282253023,-467.82,0.00024221,2]
[374375296,1753282253033,-460.0,0.00024221,2]
[374375298,1753282253042,-460.0,0.00024221,2]
[374375300,1753282253051,-460.0,0.00024221,2]
[374375302,1753282253060,-588.68,0.00024221,2]
[374375304,1753282253070,-460.0,0.00024221,2]
[374375306,1753282253080,-1232.45,0.00024221,2]
[374375308,1753282253090,-460.0,0.00024221,2]
[374375310,1753282253100,-460.0,0.00024221,2]
[374375312,1753282253110,-460.0,0.00024221,2]
[374375314,1753282253119,-1077.91,0.00024221,2]
[374375316,1753282253128,-460.0,0.00024221,2]
[374375318,1753282253137,-460.0,0.00024221,2]
[374375319,1753282253147,-460.0,0.00024221,2]
[374375320,1753282253157,-460.0,0.00024221,2]
[374375321,1753282253167,-500.68,0.00024221,2]
[374375322,1753282253177,-600.0,0.00024263,2]
[374375323,1753282253187,-251.6373,0.00024273,3]
[374375324,1753282253197,-222.878751,0.00024273,3]
[374375325,1753282253206,-429.674968,0.00024274,2]
[374375326,1753282253216,-429.674968,0.00024274,2]
[374375327,1753282253226,-429.674968,0.00024274,2]
[374375328,1753282253236,-429.674968,0.00024274,2]
[374375329,1753282253246,-500.0,0.00024291,2]
[374375330,1753282253255,-251.6373,0.00024332,2]
[374375331,1753282253264,-222.878751,0.00024332,2]
[374375332,1753282253273,-769.0,0.00024334,2]
[374375333,1753282253283,-600.0,0.00024335,2]
[374375334,1753282253292,-153.0,0.00024373,2]
[374375335,1753282253301,-153.0,0.00024373,2]
[374375336,1753282253310,-692.0,0.00024383,2]
[374375337,1753282253320,-569.02,0.00024383,2]
[374375338,1753282253329,-1003.87,0.00024383,2]
[374375339,1753282253339,-1246.16,0.00024383,2]
[374375340,1753282253348,-261.12,0.00024383,2]
[374375341,1753282253357,-3147.97,0.00024383,2]
[374375342,1753282253366,-631.17,0.00024383,2]
[374375343,1753282253376,-251.6373,0.00024389,6]
[374375344,1753282253385,-2180.48,0.000244,7]
[374375345,1753282253394,-251.6373,0.000244,7]
[374375346,1753282253403,-222.878751,0.000244,7]
[374375348,1753282253415,-210.931576,0.00024401,8]
[374375349,1753282253424,-577.5430988,0.00024411,2]
[374375350,1753282253433,-577.5430988,0.00024411,2]
[374375352,1753282253442,-577.5430988,0.00024411,2]
[374375354,1753282253451,-577.5430988,0.00024411,2]
[374375356,1753282253460,-577.5430988,0.00024411,2]
[374375358,1753282253469,-928.4,0.00024451,7]
[374375360,1753282253478,-349.0,0.00024473,2]
[374375362,1753282253488,-460.0,0.00024495,2]
[374375364,1753282253498,-460.0,0.00024495,2]
[374375366,1753282253507,-460.0,0.00024495,2]
[374375368,1753282253516,-4062.89,0.00024495,2]
[374375370,1753282253526,-460.0,0.00024495,2]
[374375372,1753282253535,-460.0,0.00024495,2]
[374375374,1753282253544,-460.0,0.00024495,2]
[374375376,1753282253553,-541.67,0.00024495,2]
[374375378,1753282253562,-460.0,0.00024495,2]
[374375380,1753282253571,-460.0,0.00024495,2]
[374375382,1753282253580,-460.0,0.00024495,2]
[374375384,1753282253590,-186.78,0.00024495,2]
[374375386,1753282253600,-467.82,0.00024495,2]
[374375388,1753282253610,-460.0,0.00024495,2]
[374375390,1753282253620,-474.73,0.00024495,2]
[374375392,1753282253629,-460.0,0.00024495,2]
[374375394,1753282253638,-588.68,0.00024495,2]
[374375396,1753282253647,-460.0,0.00024495,2]
[374375398,1753282253657,-1232.45,0.00024495,2]
[374375400,1753282253669,-460.0,0.00024495,2]
[374375402,1753282253679,-460.0,0.00024495,2]
[374375404,1753282253688,-460.0,0.00024495,2]
[374375406,1753282253697,-1077.91,0.00024495,2]
[374375408,1753282253706,-460.0,0.00024495,2]
[374375410,1753282253716,-460.0,0.00024495,2]
[374375412,1753282253729,-460.0,0.00024495,2]